{"text_format":"1","workbook":"xlsx","n_sheets":1,"sheets":["Word_Formulae"],"not_rendered":{"charts":0,"images":4,"macros":1,"external_links":0,"defined_names":2,"comments":0,"pivot_tables":0},"unopened":[],"bounds":{"document_bytes":16777216,"sheet_cells":100000,"rows_first":2000,"rows_last":500,"rows_between":2000,"halvings":0,"cell_chars":16384,"cell_head_chars":4096},"cells_cut":0,"cells_raw":0,"read":"whole","date_system":"1900"}

{"sheet":"Word_Formulae","index":0,"n_rows":50,"n_cols":48,"rows_kept":50,"cut":false,"hidden":false,"merged":[[22,10,22,13],[31,10,31,13],[40,10,40,13],[49,10,49,13],[1,1,5,42],[13,10,13,13]]}
[]
[null,"N4 Lifeskills - Word Formulae                                                                                                                                                                                                     Created by Mr.Lafferty@mathsrevision.com                                                                                                                                                          "]
[]
[]
[]
[]
[]
[null,{"$f":"\"Q1.  To cook a chicken the instructions are :\"","v":"Q1.  To cook a chicken the instructions are :"}]
[null,null,null,null,null,null,null,null,null,null,null,null,null,null,null,null,null,null,null,null,null,null,null,null,null,null,null,null,null,null,null,null,null,null,null,null,null,null,null,null,null,null,null,null,null,null,null,{"$f":"ROUND(RAND()*(40-25)+25,0)","v":35}]
[null,null,null,null,{"$f":"\" Give it \"&AV9&\" minutes per kg and then added an extra \"&AV10&\" minutes.\"","v":" Give it 35 minutes per kg and then added an extra 10 minutes."},null,null,null,null,null,null,null,null,null,null,null,null,null,null,null,null,null,null,null,null,null,null,null,null,null,null,null,null,null,null,null,null,null,null,null,null,null,null,null,null,null,null,{"$f":"ROUND(RAND()*(5-1)+1,0)*5","v":10}]
[null,null,null,null,null,null,null,null,null,null,null,null,null,null,null,null,null,null,null,null,null,null,null,null,null,null,null,null,null,null,null,null,null,null,null,null,null,null,null,null,null,null,null,null,null,null,null,{"$f":"ROUND(RAND()*(15-3)+3,0)","v":12}]
[null,null,{"$f":"\"For how many minutes should you cook a \"&AV11&\"kg chicken.\"","v":"For how many minutes should you cook a 12kg chicken."}]
[]
[null,null,null,null,null,null,null,null,null,null,null,null,null,null,"minutes",null,null,null,null,null,null,null,null,null,null,null,null,null,null,null,null,null,null,null,null,null,null,null,null,null,null,null,null,null,null,null,null,{"$f":"AV11*AV9+AV10","v":430}]
[]
[]
[null,{"$f":"\"Q2.  To calculate the cost of ordering Warrior T-Shirts online use the following formula.\"","v":"Q2.  To calculate the cost of ordering Warrior T-Shirts online use the following formula."}]
[null,null,null,null,null,null,null,null,null,null,null,null,null,null,null,null,null,null,null,null,null,null,null,null,null,null,null,null,null,null,null,null,null,null,null,null,null,null,null,null,null,null,null,null,null,null,null,{"$f":"ROUND(RAND()*(40-15)+15,0)","v":34}]
[null,null,null,null,{"$f":"\" Multiply the number of T-shirts you want to buy by \"&AV18&\" and add on \"&AV19&\".\"","v":" Multiply the number of T-shirts you want to buy by 34 and add on 3.99."},null,null,null,null,null,null,null,null,null,null,null,null,null,null,null,null,null,null,null,null,null,null,null,null,null,null,null,null,null,null,null,null,null,null,null,null,null,null,null,null,null,null,{"$f":"ROUND(RAND()*(9-1)+1,0)+0.99","v":3.99}]
[null,null,null,null,null,null,null,null,null,null,null,null,null,null,null,null,null,null,null,null,null,null,null,null,null,null,null,null,null,null,null,null,null,null,null,null,null,null,null,null,null,null,null,null,null,null,null,{"$f":"ROUND(RAND()*(15-3)+3,0)","v":5}]
[null,null,{"$f":"\"How much will it cost to order \"&AV20&\" T-Shirts.\"","v":"How much will it cost to order 5 T-Shirts."}]
[]
[null,null,null,null,null,null,null,null,null,"£",null,null,null,null,null,null,null,null,null,null,null,null,null,null,null,null,null,null,null,null,null,null,null,null,null,null,null,null,null,null,null,null,null,null,null,null,null,{"$f":"AV20*AV18+AV19","v":173.99}]
[]
[null,null,null,null,null,null,null,null,null,null,null,null,null,null,null,null,null,null,null,null,null,null,null,null,null,null,null,null,null,null,null,null,null,null,null,null,null,null,null,null,null,null,null,null,null,null,null,{"$f":"ROUND(RAND()*(4-2)+2,0)","v":2}]
[null,{"$f":"\"Q3.  In a quiz the rules are.\"","v":"Q3.  In a quiz the rules are."},null,null,null,null,null,null,null,null,null,null,null,null,null,null,null,null,null,null,null,null,null,null,null,null,null,null,null,null,null,null,null,null,null,null,null,null,null,null,null,null,null,null,null,null,null,{"$f":"IF(AV25=2,1,ROUND(RAND()*(2-1)+1,0))","v":1}]
[null,null,null,null,null,null,null,null,null,null,null,null,null,null,null,null,null,null,null,null,null,null,null,null,null,null,null,null,null,null,null,null,null,null,null,null,null,null,null,null,null,null,null,null,null,null,null,{"$f":"ROUND(RAND()*(40-15)+15,0)","v":38}]
[null,null,null,null,{"$f":"AV25&\" points for a correct answer and subtract \"&AV26&\" for a wrong answer.\"","v":"2 points for a correct answer and subtract 1 for a wrong answer."},null,null,null,null,null,null,null,null,null,null,null,null,null,null,null,null,null,null,null,null,null,null,null,null,null,null,null,null,null,null,null,null,null,null,null,null,null,null,null,null,null,null,{"$f":"ROUND(RAND()*(40-15)+15,0)","v":35}]
[]
[null,null,{"$f":"\"A team got \"&AV27&\" questions right and \"&AV28&\" questions wrong. What was their score ?\"","v":"A team got 38 questions right and 35 questions wrong. What was their score ?"}]
[]
[null,null,null,null,null,null,null,null,null,null,null,null,null,null,"points",null,null,null,null,null,null,null,null,null,null,null,null,null,null,null,null,null,null,null,null,null,null,null,null,null,null,null,null,null,null,null,null,{"$f":"AV25*AV27-AV28*AV26","v":41}]
[]
[]
[null,{"$f":"\"Q4.  To convert temperature in degrees Celsius to degrees Fahrenheit you do the following :\"","v":"Q4.  To convert temperature in degrees Celsius to degrees Fahrenheit you do the following :"}]
[null,null,null,null,null,null,null,null,null,null,null,null,null,null,null,null,null,null,null,null,null,null,null,null,null,null,null,null,null,null,null,null,null,null,null,null,null,null,null,null,null,null,null,null,null,null,null,{"$f":"ROUND(RAND()*(50-(-10))+(-10),0)","v":25}]
[null,null,null,null,{"$f":"\"Multiply by 9, then divide by 5, then add 32\"","v":"Multiply by 9, then divide by 5, then add 32"}]
[]
[null,null,{"$f":"\"Convert \"&AV36&\" degrees Celsius to degrees Fahrenheit giving your answer to the nearest degree\"","v":"Convert 25 degrees Celsius to degrees Fahrenheit giving your answer to the nearest degree"}]
[]
[null,null,null,null,null,null,null,null,null,null,null,null,null,null,"oF",null,null,null,null,null,null,null,null,null,null,null,null,null,null,null,null,null,null,null,null,null,null,null,null,null,null,null,null,null,null,null,null,{"$f":"ROUND(AV36*9/5+32,0)","v":77}]
[]
[]
[null,{"$f":"\"Q5.  To convert temperature in degrees Fahrenheit Celsius to degrees Celsius you do the following.\"","v":"Q5.  To convert temperature in degrees Fahrenheit Celsius to degrees Celsius you do the following."}]
[null,null,null,null,null,null,null,null,null,null,null,null,null,null,null,null,null,null,null,null,null,null,null,null,null,null,null,null,null,null,null,null,null,null,null,null,null,null,null,null,null,null,null,null,null,null,null,{"$f":"ROUND(RAND()*(140-(10))+(10),0)","v":27}]
[null,null,null,null,{"$f":"\"Deduct 32, then multiply by 5, then divide by 9\"","v":"Deduct 32, then multiply by 5, then divide by 9"}]
[]
[null,null,{"$f":"\"Convert \"&AV45&\" degrees Celsius to degrees Fahrenheit giving your answer to the nearest degree\"","v":"Convert 27 degrees Celsius to degrees Fahrenheit giving your answer to the nearest degree"}]
[]
[null,null,null,null,null,null,null,null,null,null,null,null,null,null,"oC",null,null,null,null,null,null,null,null,null,null,null,null,null,null,null,null,null,null,null,null,null,null,null,null,null,null,null,null,null,null,null,null,{"$f":"ROUND((AV45-32)*5/9,0)","v":-3}]